[Event "NJSK 2026 Jeugd C"]
[Site "Helmond, Netherlands"]
[Date "2026.05.01"]
[Round "9.3"]
[White "Pathak, Raghav"]
[Black "Botter, Simon"]
[Result "0-1"]
[TimeControl "90min/40moves + 30sec/move"]
[WhiteTitle "-"]
[BlackTitle "-"]
[WhiteFideId "1084259"]
[BlackFideId "40107698"]
[WhiteElo "2091"]
[BlackElo "1988"]

1. e4 {[%clk 01:23:54]} {[%emt 00:07:05]} c5 {[%clk 01:30:47]} {[%emt
00:00:13]} 2. Nf3 {[%clk 01:23:37]} {[%emt 00:00:47]} d6 {[%clk 01:31:12]}
{[%emt 00:00:05]} 3. d4 {[%clk 01:24:00]} {[%emt 00:00:08]} cxd4 {[%clk
01:31:37]} {[%emt 00:00:05]} 4. Nxd4 {[%clk 01:24:27]} {[%emt 00:00:02]} Nf6
{[%clk 01:31:49]} {[%emt 00:00:18]} 5. Nc3 {[%clk 01:24:48]} {[%emt 00:00:09]}
a6 {[%clk 01:31:55]} {[%emt 00:00:24]} 6. Be3 {[%clk 01:25:06]} {[%emt
00:00:12]} e5 {[%clk 01:32:19]} {[%emt 00:00:06]} 7. Nb3 {[%clk 01:25:34]}
{[%emt 00:00:03]} Be7 {[%clk 01:32:43]} {[%emt 00:00:05]} 8. f3 {[%clk
01:26:00]} {[%emt 00:00:04]} Be6 {[%clk 01:33:06]} {[%emt 00:00:06]} 9. Qd2
{[%clk 01:26:26]} {[%emt 00:00:05]} h5 {[%clk 01:33:23]} {[%emt 00:00:12]} 10.
O-O-O {[%clk 01:26:19]} {[%emt 00:00:36]} Nbd7 {[%clk 01:33:46]} {[%emt
00:00:08]} 11. Kb1 {[%clk 01:25:57]} {[%emt 00:00:52]} Rc8 {[%clk 01:34:04]}
{[%emt 00:00:12]} 12. Nd5 {[%clk 01:24:08]} {[%emt 00:02:20]} Nxd5 {[%clk
01:33:35]} {[%emt 00:00:59]} 13. exd5 {[%clk 01:24:26]} {[%emt 00:00:12]} Bf5
{[%clk 01:33:59]} {[%emt 00:00:06]} 14. Bd3 {[%clk 01:24:48]} {[%emt 00:00:07]}
Bxd3 {[%clk 01:34:20]} {[%emt 00:00:09]} 15. Qxd3 {[%clk 01:25:15]} {[%emt
00:00:03]} Bg5 {[%clk 01:34:40]} {[%emt 00:00:10]} 16. Bf2 {[%clk 01:24:40]}
{[%emt 00:01:06]} g6 {[%clk 01:31:24]} {[%emt 00:03:45]} 17. h4 {[%clk
01:24:22]} {[%emt 00:00:48]} Bh6 {[%clk 01:30:09]} {[%emt 00:01:44]} 18. Rhe1
{[%clk 01:23:18]} {[%emt 00:01:35]} Qc7 {[%clk 01:24:11]} {[%emt 00:06:28]} 19.
c3 {[%clk 01:22:15]} {[%emt 00:01:33]} Nf6 {[%clk 01:11:17]} {[%emt 00:13:23]}
20. f4 {[%clk 01:15:01]} {[%emt 00:07:45]} Bxf4 {[%clk 01:03:02]} {[%emt
00:08:45]} 21. Qf3 {[%clk 01:15:13]} {[%emt 00:00:18]} Qe7 {[%clk 00:56:28]}
{[%emt 00:07:04]} 22. Bd4 {[%clk 01:13:05]} {[%emt 00:02:38]} Ng4 {[%clk
00:49:56]} {[%emt 00:07:02]} 23. c4 {[%clk 00:46:38]} {[%emt 00:26:57]} Rxc4
{[%clk 00:37:25]} {[%emt 00:13:01]} 24. Qxf4 {[%clk 00:39:24]} {[%emt
00:07:44]} Rxd4 {[%clk 00:37:38]} {[%emt 00:00:18]} 25. Rxd4 {[%clk 00:37:36]}
{[%emt 00:02:18]} exf4 {[%clk 00:38:03]} {[%emt 00:00:05]} 26. Rxe7+ {[%clk
00:38:01]} {[%emt 00:00:05]} Kxe7 {[%clk 00:38:27]} {[%emt 00:00:06]} 27. Rxf4
{[%clk 00:38:21]} {[%emt 00:00:09]} Nf6 {[%clk 00:37:22]} {[%emt 00:01:34]} 28.
Rd4 {[%clk 00:38:10]} {[%emt 00:00:42]} Rc8 {[%clk 00:37:07]} {[%emt 00:00:45]}
29. a4 {[%clk 00:38:04]} {[%emt 00:00:36]} b6 {[%clk 00:35:36]} {[%emt
00:02:01]} 30. g3 {[%clk 00:35:53]} {[%emt 00:02:41]} Re8 {[%clk 00:34:02]}
{[%emt 00:02:06]} 31. Nd2 {[%clk 00:35:48]} {[%emt 00:00:34]} Rc8 {[%clk
00:25:46]} {[%emt 00:08:47]} 32. Nf1 {[%clk 00:33:05]} {[%emt 00:03:12]} Ng4
{[%clk 00:23:34]} {[%emt 00:02:42]} 33. Nd2 {[%clk 00:31:58]} {[%emt 00:01:37]}
f5 {[%clk 00:20:48]} {[%emt 00:03:15]} 34. Nc4 {[%clk 00:30:48]} {[%emt
00:01:40]} Rb8 {[%clk 00:17:07]} {[%emt 00:04:12]} 35. b3 {[%clk 00:21:28]}
{[%emt 00:09:50]} b5 {[%clk 00:15:22]} {[%emt 00:02:16]} 36. Na5 {[%clk
00:21:03]} {[%emt 00:00:54]} Ne5 {[%clk 00:14:26]} {[%emt 00:01:26]} 37. Kc2
{[%clk 00:18:42]} {[%emt 00:02:50]} bxa4 {[%clk 00:14:00]} {[%emt 00:00:56]} 38.
Rxa4 {[%clk 00:19:04]} {[%emt 00:00:08]} Rb5 {[%clk 00:14:03]} {[%emt
00:00:27]} 39. Nc4 {[%clk 00:18:46]} {[%emt 00:00:49]} Rxd5 {[%clk 00:13:12]}
{[%emt 00:01:21]} 40. Nxe5 {[%clk 00:15:03]} {[%emt 00:04:13]} Rxe5 {[%clk
00:12:56]} {[%emt 00:00:46]} 41. Rxa6 {[%clk 00:14:01]} {[%emt 00:01:32]} Re3
{[%clk 00:12:21]} {[%emt 00:01:05]} 42. b4 {[%clk 00:14:27]} {[%emt 00:00:05]}
Kd7 {[%clk 00:12:40]} {[%emt 00:00:10]} 43. b5 {[%clk 00:14:50]} {[%emt
00:00:07]} Kc7 {[%clk 00:12:37]} {[%emt 00:00:33]} 44. Rc6+ {[%clk 00:14:53]}
{[%emt 00:00:28]} Kd7 {[%clk 00:13:00]} {[%emt 00:00:06]} 45. Rc3 {[%clk
00:15:17]} {[%emt 00:00:07]} Re5 {[%clk 00:12:21]} {[%emt 00:01:09]} 46. b6
{[%clk 00:14:25]} {[%emt 00:01:21]} Rc5 {[%clk 00:12:00]} {[%emt 00:00:52]} 47.
b7 {[%clk 00:13:32]} {[%emt 00:01:22]} Kc7 {[%clk 00:12:08]} {[%emt 00:00:22]}
48. Kd3 {[%clk 00:13:46]} {[%emt 00:00:17]} Rxc3+ {[%clk 00:12:23]} {[%emt
00:00:15]} 49. Kxc3 {[%clk 00:14:09]} {[%emt 00:00:05]} Kxb7 {[%clk 00:12:50]}
{[%emt 00:00:04]} 50. Kd4 {[%clk 00:14:32]} {[%emt 00:00:07]} Kc6 {[%clk
00:13:09]} {[%emt 00:00:11]} 51. Kc4 {[%clk 00:14:56]} {[%emt 00:00:05]} d5+
{[%clk 00:13:34]} {[%emt 00:00:06]} 52. Kd4 {[%clk 00:15:25]} {[%emt 00:00:02]}
Kd6 {[%clk 00:13:57]} {[%emt 00:00:05]} 53. Kd3 {[%clk 00:15:51]} {[%emt
00:00:05]} Ke5 {[%clk 00:14:18]} {[%emt 00:00:09]} 54. Ke3 {[%clk 00:16:15]}
{[%emt 00:00:06]} d4+ {[%clk 00:14:26]} {[%emt 00:00:22]} 55. Kf3 {[%clk
00:13:36]} {[%emt 00:03:09]} Kd5 {[%clk 00:14:42]} {[%emt 00:00:14]} 56. Kf4
{[%clk 00:14:01]} {[%emt 00:00:05]} Kc4 {[%clk 00:15:02]} {[%emt 00:00:10]} 57.
Kg5 {[%clk 00:14:12]} {[%emt 00:00:19]} d3 {[%clk 00:15:28]} {[%emt 00:00:05]}
58. Kxg6 {[%clk 00:14:39]} {[%emt 00:00:02]} d2 {[%clk 00:15:52]} {[%emt
00:00:05]} 59. Kxh5 {[%clk 00:14:57]} {[%emt 00:00:13]} d1=Q+ {[%clk 00:16:18]}
{[%emt 00:00:05]} 60. Kh6 {[%clk 00:15:24]} {[%emt 00:00:02]} Qg4 {[%clk
00:16:38]} {[%emt 00:00:10]} 61. h5 {[%clk 00:15:50]} {[%emt 00:00:04]} Kd5
{[%clk 00:16:53]} {[%emt 00:00:15]} 62. Kh7 {[%clk 00:16:18]} {[%emt 00:00:02]}
Ke6 {[%clk 00:17:11]} {[%emt 00:00:12]} 63. h6 {[%clk 00:16:42]} {[%emt
00:00:06]} Ke5 {[%clk 00:17:37]} {[%emt 00:00:26]} 0-1

[Event "NJSK 2026 Jeugd C"]
[Site "Helmond, Netherlands"]
[Date "2026.05.01"]
[Round "9.4"]
[White "Thijssen, Freek"]
[Black "Nadrshin, Oleg"]
[Result "1-0"]
[TimeControl "90min/40moves + 30sec/move"]
[WhiteTitle "-"]
[BlackTitle "-"]
[WhiteFideId "1091840"]
[BlackFideId "40111873"]
[WhiteElo "2159"]
[BlackElo "1894"]

1. e4 {[%clk 01:26:53]} {[%emt 00:04:06]} c5 {[%clk 01:30:56]} {[%emt
00:00:05]} 2. Nf3 {[%clk 01:27:19]} {[%emt 00:00:04]} Nc6 {[%clk 01:31:23]}
{[%emt 00:00:04]} 3. d4 {[%clk 01:27:43]} {[%emt 00:00:06]} cxd4 {[%clk
01:31:49]} {[%emt 00:00:04]} 4. Nxd4 {[%clk 01:28:07]} {[%emt 00:00:05]} Nf6
{[%clk 01:32:15]} {[%emt 00:00:04]} 5. Nc3 {[%clk 01:28:31]} {[%emt 00:00:06]}
e5 {[%clk 01:32:41]} {[%emt 00:00:04]} 6. Ndb5 {[%clk 01:28:55]} {[%emt
00:00:06]} d6 {[%clk 01:33:07]} {[%emt 00:00:05]} 7. Bg5 {[%clk 01:27:42]}
{[%emt 00:01:42]} a6 {[%clk 01:33:33]} {[%emt 00:00:05]} 8. Na3 {[%clk
01:28:08]} {[%emt 00:00:04]} b5 {[%clk 01:33:59]} {[%emt 00:00:03]} 9. Nd5
{[%clk 01:28:17]} {[%emt 00:00:21]} Be7 {[%clk 01:34:24]} {[%emt 00:00:05]} 10.
Bxf6 {[%clk 01:28:41]} {[%emt 00:00:05]} Bxf6 {[%clk 01:34:49]} {[%emt
00:00:06]} 11. c3 {[%clk 01:29:01]} {[%emt 00:00:08]} O-O {[%clk 01:35:15]}
{[%emt 00:00:06]} 12. Nc2 {[%clk 01:29:25]} {[%emt 00:00:06]} Rb8 {[%clk
01:35:41]} {[%emt 00:00:05]} 13. h4 {[%clk 01:28:19]} {[%emt 00:01:34]} g6
{[%clk 01:35:50]} {[%emt 00:00:21]} 14. g3 {[%clk 01:28:23]} {[%emt 00:00:26]}
Bg7 {[%clk 01:34:06]} {[%emt 00:02:15]} 15. h5 {[%clk 01:26:47]} {[%emt
00:02:04]} Be6 {[%clk 01:33:09]} {[%emt 00:01:28]} 16. Nce3 {[%clk 01:25:09]}
{[%emt 00:02:08]} a5 {[%clk 01:27:02]} {[%emt 00:06:39]} 17. a3 {[%clk
01:08:31]} {[%emt 00:17:08]} Ne7 {[%clk 01:09:11]} {[%emt 00:18:20]} 18. Bg2
{[%clk 00:54:53]} {[%emt 00:14:08]} Nxd5 {[%clk 01:01:47]} {[%emt 00:07:54]} 19.
Nxd5 {[%clk 00:54:48]} {[%emt 00:00:34]} Bxd5 {[%clk 00:57:10]} {[%emt
00:05:08]} 20. Qxd5 {[%clk 00:55:02]} {[%emt 00:00:15]} b4 {[%clk 00:51:34]}
{[%emt 00:06:07]} 21. axb4 {[%clk 00:51:37]} {[%emt 00:03:55]} axb4 {[%clk
00:50:28]} {[%emt 00:01:36]} 22. c4 {[%clk 00:44:01]} {[%emt 00:08:07]} Ra8
{[%clk 00:37:08]} {[%emt 00:13:49]} 23. O-O {[%clk 00:42:23]} {[%emt 00:02:08]}
b3 {[%clk 00:27:18]} {[%emt 00:10:21]} 24. Rfd1 {[%clk 00:23:29]} {[%emt
00:19:25]} Ra2 {[%clk 00:22:26]} {[%emt 00:05:22]} 25. Rxa2 {[%clk 00:11:44]}
{[%emt 00:12:14]} bxa2 {[%clk 00:22:51]} {[%emt 00:00:05]} 26. Ra1 {[%clk
00:12:09]} {[%emt 00:00:06]} Qa8 {[%clk 00:21:03]} {[%emt 00:02:19]} 27. Qxd6
{[%clk 00:07:42]} {[%emt 00:04:56]} Rd8 {[%clk 00:19:14]} {[%emt 00:02:20]} 28.
Rxa2 {[%clk 00:07:14]} {[%emt 00:00:57]} Qxa2 {[%clk 00:18:35]} 29. Qxd8+
{[%clk 00:07:38]} {[%emt 00:01:14]} Bf8 {[%clk 00:19:02]} {[%emt 00:00:04]} 30.
Qb8 {[%clk 00:05:40]} {[%emt 00:02:27]} Qxc4 {[%clk 00:18:08]} {[%emt
00:01:25]} 31. Qxe5 {[%clk 00:05:49]} {[%emt 00:00:21]} Qc1+ {[%clk 00:17:51]}
{[%emt 00:00:47]} 32. Bf1 {[%clk 00:05:30]} {[%emt 00:00:48]} gxh5 {[%clk
00:15:30]} {[%emt 00:02:51]} 33. Kg2 {[%clk 00:04:54]} {[%emt 00:01:07]} Qc5
{[%clk 00:11:30]} {[%emt 00:04:30]} 34. Qxc5 {[%clk 00:01:04]} {[%emt
00:04:20]} Bxc5 {[%clk 00:11:55]} {[%emt 00:00:05]} 35. Be2 {[%clk 00:01:30]}
{[%emt 00:00:04]} Kg7 {[%clk 00:10:33]} {[%emt 00:01:52]} 36. Bxh5 {[%clk
00:01:55]} {[%emt 00:00:04]} Kf6 {[%clk 00:10:25]} {[%emt 00:00:39]} 37. f4
{[%clk 00:01:45]} {[%emt 00:00:40]} Ke6 {[%clk 00:09:55]} {[%emt 00:01:00]} 38.
Bg4+ {[%clk 00:01:44]} {[%emt 00:00:31]} Kf6 {[%clk 00:09:22]} {[%emt
00:01:03]} 39. Bd1 {[%clk 00:02:09]} {[%emt 00:00:05]} Bb4 {[%clk 00:08:43]}
{[%emt 00:01:08]} 40. Kf3 {[%clk 00:02:31]} {[%emt 00:00:08]} Kg6 {[%clk
00:08:17]} {[%emt 00:00:56]} 41. Bc2 {[%clk 00:02:28]} {[%emt 00:00:33]} Kg7
{[%clk 00:07:59]} {[%emt 00:00:48]} 42. g4 {[%clk 00:02:38]} {[%emt 00:00:19]}
Bd2 {[%clk 00:08:13]} {[%emt 00:00:16]} 43. b3 {[%clk 00:02:41]} {[%emt
00:00:27]} h6 {[%clk 00:07:59]} {[%emt 00:00:44]} 44. Bd3 {[%clk 00:03:06]}
{[%emt 00:00:05]} f6 {[%clk 00:07:52]} {[%emt 00:00:37]} 45. e5 {[%clk
00:02:36]} {[%emt 00:01:00]} fxe5 {[%clk 00:07:26]} {[%emt 00:00:57]} 46. fxe5
{[%clk 00:03:05]} Kf7 {[%clk 00:06:42]} {[%emt 00:01:13]} 47. Bf5 {[%clk
00:02:29]} {[%emt 00:01:06]} Ke7 {[%clk 00:06:38]} {[%emt 00:00:35]} 48. Ke4
{[%clk 00:02:58]} {[%emt 00:00:01]} Bb4 {[%clk 00:06:15]} {[%emt 00:00:53]} 49.
Kd5 {[%clk 00:03:25]} {[%emt 00:00:02]} Bc3 {[%clk 00:06:34]} {[%emt 00:00:12]}
50. Bg6 {[%clk 00:01:31]} {[%emt 00:02:25]} Kd7 {[%clk 00:06:25]} {[%emt
00:00:38]} 51. Bh7 {[%clk 00:01:54]} {[%emt 00:00:07]} Ke7 {[%clk 00:06:35]}
{[%emt 00:00:20]} 52. Bd3 {[%clk 00:02:23]} {[%emt 00:00:01]} Kd7 {[%clk
00:06:25]} {[%emt 00:00:39]} 53. Bc2 {[%clk 00:02:52]} Ke7 {[%clk 00:06:46]}
{[%emt 00:00:09]} 54. Bb1 {[%clk 00:03:22]} Kd7 {[%clk 00:07:08]} {[%emt
00:00:08]} 55. Be4 {[%clk 00:03:51]} Ke7 {[%clk 00:07:24]} {[%emt 00:00:15]} 56.
Bf5 {[%clk 00:04:20]} Bb4 {[%clk 00:06:06]} {[%emt 00:01:48]} 57. Kc4 {[%clk
00:04:40]} {[%emt 00:00:09]} Ba5 {[%clk 00:06:05]} {[%emt 00:00:32]} 58. b4
{[%clk 00:05:01]} {[%emt 00:00:10]} Bc7 {[%clk 00:06:32]} {[%emt 00:00:04]} 59.
Kd5 {[%clk 00:05:26]} {[%emt 00:00:04]} Bb8 {[%clk 00:06:46]} {[%emt 00:00:17]}
60. b5 {[%clk 00:05:47]} {[%emt 00:00:09]} Kd8 {[%clk 00:06:46]} {[%emt
00:00:30]} 61. b6 {[%clk 00:05:32]} {[%emt 00:00:44]} Ke7 {[%clk 00:06:50]}
{[%emt 00:00:26]} 62. Be6 {[%clk 00:02:35]} {[%emt 00:03:27]} Kd8 {[%clk
00:06:14]} {[%emt 00:01:07]} 63. Ke4 {[%clk 00:02:54]} {[%emt 00:00:10]} Ke7
{[%clk 00:06:25]} {[%emt 00:00:19]} 64. Bd5 {[%clk 00:03:22]} {[%emt 00:00:02]}
Kf8 {[%clk 00:06:12]} {[%emt 00:00:44]} 65. Kf5 {[%clk 00:03:41]} {[%emt
00:00:11]} Ke7 {[%clk 00:05:48]} {[%emt 00:00:53]} 66. e6 {[%clk 00:03:28]}
{[%emt 00:00:43]} Bd6 {[%clk 00:05:28]} {[%emt 00:00:51]} 67. Kg6 {[%clk
00:03:27]} {[%emt 00:00:31]} Bf4 {[%clk 00:05:48]} {[%emt 00:00:10]} 68. b7
{[%clk 00:03:48]} {[%emt 00:00:09]} Ke8 {[%clk 00:06:01]} {[%emt 00:00:17]} 69.
Kf6 {[%clk 00:04:08]} {[%emt 00:00:08]} Bd6 {[%clk 00:06:06]} {[%emt 00:00:26]}
70. Bc6+ {[%clk 00:04:27]} {[%emt 00:00:12]} Kd8 {[%clk 00:06:27]} {[%emt
00:00:10]} 71. b8=Q+ {[%clk 00:04:46]} {[%emt 00:00:11]} 1-0

[Event "NJSK 2026 Jeugd C"]
[Site "Helmond, Netherlands"]
[Date "2026.05.01"]
[Round "9.5"]
[White "Omnes, Tiago"]
[Black "Zhang, Xiheng"]
[Result "1/2-1/2"]
[TimeControl "90min/40moves + 30sec/move"]
[WhiteTitle "-"]
[BlackTitle "-"]
[WhiteFideId "1091867"]
[BlackFideId "40102386"]
[WhiteElo "1990"]
[BlackElo "2135"]

1. Nf3 {[%clk 01:30:58]} {[%emt 00:00:01]} Nf6 {[%clk 01:30:56]} {[%emt
00:00:04]} 2. g3 {[%clk 01:31:22]} {[%emt 00:00:06]} g6 {[%clk 01:31:21]}
{[%emt 00:00:05]} 3. b3 {[%clk 01:31:46]} {[%emt 00:00:05]} Bg7 {[%clk
01:31:46]} {[%emt 00:00:06]} 4. Bb2 {[%clk 01:32:12]} {[%emt 00:00:04]} O-O
{[%clk 01:32:01]} {[%emt 00:00:14]} 5. Bg2 {[%clk 01:32:39]} {[%emt 00:00:04]}
d6 {[%clk 01:32:20]} {[%emt 00:00:11]} 6. d4 {[%clk 01:33:05]} {[%emt
00:00:04]} b5 {[%clk 01:31:33]} {[%emt 00:01:17]} 7. Nfd2 {[%clk 01:24:40]}
{[%emt 00:08:54]} c6 {[%clk 01:27:52]} {[%emt 00:04:11]} 8. O-O {[%clk
01:24:12]} {[%emt 00:00:57]} d5 {[%clk 01:26:09]} {[%emt 00:02:12]} 9. c4
{[%clk 01:18:41]} {[%emt 00:06:01]} bxc4 {[%clk 01:15:40]} {[%emt 00:11:00]} 10.
bxc4 {[%clk 01:18:32]} {[%emt 00:00:39]} Bf5 {[%clk 01:13:35]} {[%emt
00:02:35]} 11. Nc3 {[%clk 01:12:20]} {[%emt 00:06:42]} Bh6 {[%clk 01:01:55]}
{[%emt 00:12:10]} 12. e4 {[%clk 00:56:57]} {[%emt 00:15:51]} dxe4 {[%clk
00:41:56]} {[%emt 00:20:30]} 13. Ncxe4 {[%clk 00:47:03]} {[%emt 00:10:24]} Nxe4
{[%clk 00:38:55]} {[%emt 00:03:32]} 14. Nxe4 {[%clk 00:47:21]} {[%emt
00:00:12]} Nd7 {[%clk 00:38:09]} {[%emt 00:01:15]} 15. g4 {[%clk 00:27:21]}
{[%emt 00:20:30]} Bxe4 {[%clk 00:36:24]} {[%emt 00:02:15]} 16. Bxe4 {[%clk
00:27:44]} {[%emt 00:00:07]} Rb8 {[%clk 00:33:53]} {[%emt 00:03:01]} 17. Bc3
{[%clk 00:17:09]} {[%emt 00:11:07]} Qc7 {[%clk 00:30:50]} {[%emt 00:03:32]} 18.
h3 {[%clk 00:09:49]} {[%emt 00:07:50]} Rfd8 {[%clk 00:24:13]} {[%emt 00:07:08]}
19. Qf3 {[%clk 00:06:54]} {[%emt 00:03:25]} c5 {[%clk 00:18:33]} {[%emt
00:06:10]} 20. d5 {[%clk 00:03:33]} {[%emt 00:03:51]} Bg7 {[%clk 00:15:59]}
{[%emt 00:03:05]} 21. Bxg7 {[%clk 00:03:16]} {[%emt 00:00:46]} Kxg7 {[%clk
00:16:26]} {[%emt 00:00:03]} 22. Qd3 {[%clk 00:01:39]} {[%emt 00:02:07]} Rb6
{[%clk 00:11:45]} {[%emt 00:05:12]} 23. Rab1 {[%clk 00:01:12]} {[%emt
00:00:56]} Rdb8 {[%clk 00:11:41]} {[%emt 00:00:34]} 24. Rb3 {[%clk 00:01:05]}
{[%emt 00:00:38]} Qf4 {[%clk 00:08:48]} {[%emt 00:03:21]} 25. Bg2 {[%clk
00:00:50]} {[%emt 00:00:45]} Rb4 {[%clk 00:03:32]} {[%emt 00:05:47]} 26. Re1
{[%clk 00:00:36]} {[%emt 00:00:44]} Ne5 {[%clk 00:02:36]} {[%emt 00:01:26]} 27.
Qc3 {[%clk 00:01:05]} {[%emt 00:00:01]} 1/2-1/2

[Event "NJSK 2026 Jeugd C"]
[Site "Helmond, Netherlands"]
[Date "2026.05.01"]
[Round "9.6"]
[White "Leenen, Boyd"]
[Black "Sosef, Noah"]
[Result "1-0"]
[TimeControl "90min/40moves + 30sec/move"]
[WhiteTitle "-"]
[BlackTitle "-"]
[WhiteFideId "1083937"]
[BlackFideId "40107060"]
[WhiteElo "2205"]
[BlackElo "2012"]

1. d4 {[%clk 01:30:58]} {[%emt 00:00:03]} Nf6 {[%clk 01:30:56]} {[%emt
00:00:04]} 2. c4 {[%clk 01:31:22]} {[%emt 00:00:06]} g6 {[%clk 01:31:22]}
{[%emt 00:00:04]} 3. Nc3 {[%clk 01:31:38]} {[%emt 00:00:13]} Bg7 {[%clk
01:31:46]} {[%emt 00:00:06]} 4. e4 {[%clk 01:32:01]} {[%emt 00:00:07]} d6
{[%clk 01:32:13]} {[%emt 00:00:04]} 5. Nf3 {[%clk 01:32:24]} {[%emt 00:00:07]}
O-O {[%clk 01:32:37]} {[%emt 00:00:06]} 6. Be2 {[%clk 01:32:46]} {[%emt
00:00:08]} e5 {[%clk 01:33:04]} {[%emt 00:00:03]} 7. O-O {[%clk 01:33:10]}
{[%emt 00:00:06]} a5 {[%clk 01:32:47]} {[%emt 00:00:48]} 8. Be3 {[%clk
01:33:30]} {[%emt 00:00:09]} Na6 {[%clk 01:29:32]} {[%emt 00:03:45]} 9. dxe5
{[%clk 01:30:52]} {[%emt 00:03:09]} dxe5 {[%clk 01:29:22]} {[%emt 00:00:39]} 10.
Qc2 {[%clk 01:31:11]} {[%emt 00:00:10]} Re8 {[%clk 01:12:05]} {[%emt 00:17:48]}
11. Rfd1 {[%clk 01:28:15]} {[%emt 00:03:25]} Qe7 {[%clk 01:12:21]} {[%emt
00:00:14]} 12. a3 {[%clk 01:14:09]} {[%emt 00:14:37]} c6 {[%clk 01:10:26]}
{[%emt 00:02:25]} 13. Na4 {[%clk 01:14:06]} {[%emt 00:00:33]} Nd7 {[%clk
00:53:09]} {[%emt 00:17:47]} 14. c5 {[%clk 01:12:34]} {[%emt 00:02:01]} Nc7
{[%clk 00:52:27]} {[%emt 00:01:13]} 15. Rd2 {[%clk 00:27:04]} {[%emt 00:45:59]}
Ne6 {[%clk 00:42:30]} {[%emt 00:10:27]} 16. Rad1 {[%clk 00:27:07]} {[%emt
00:00:26]} Nf4 {[%clk 00:34:25]} {[%emt 00:08:36]} 17. Bf1 {[%clk 00:25:50]}
{[%emt 00:01:47]} Nf6 {[%clk 00:30:45]} {[%emt 00:04:12]} 18. h3 {[%clk
00:25:47]} {[%emt 00:00:32]} h6 {[%clk 00:27:13]} {[%emt 00:04:02]} 19. Nb6
{[%clk 00:24:39]} {[%emt 00:01:38]} Rb8 {[%clk 00:26:26]} {[%emt 00:01:18]} 20.
Bxf4 {[%clk 00:21:18]} {[%emt 00:03:51]} exf4 {[%clk 00:26:49]} {[%emt
00:00:07]} 21. e5 {[%clk 00:21:40]} {[%emt 00:00:08]} Nd5 {[%clk 00:20:37]}
{[%emt 00:06:42]} 22. Nxd5 {[%clk 00:21:37]} {[%emt 00:00:33]} cxd5 {[%clk
00:20:59]} {[%emt 00:00:08]} 23. Rxd5 {[%clk 00:21:58]} {[%emt 00:00:09]} Be6
{[%clk 00:19:12]} {[%emt 00:02:17]} 24. Rd6 {[%clk 00:14:38]} {[%emt 00:07:49]}
Bf5 {[%clk 00:06:44]} {[%emt 00:12:59]} 25. Qc3 {[%clk 00:11:48]} {[%emt
00:03:19]} Bxe5 {[%clk 00:05:02]} {[%emt 00:02:13]} 26. Nxe5 {[%clk 00:12:11]}
{[%emt 00:00:07]} Qxe5 {[%clk 00:05:28]} {[%emt 00:00:04]} 27. Qxe5 {[%clk
00:12:27]} {[%emt 00:00:13]} Rxe5 {[%clk 00:05:49]} {[%emt 00:00:09]} 28. b4
{[%clk 00:12:40]} {[%emt 00:00:17]} axb4 {[%clk 00:05:25]} {[%emt 00:00:55]} 29.
axb4 {[%clk 00:13:08]} {[%emt 00:00:01]} Ra8 {[%clk 00:02:19]} {[%emt
00:03:37]} 30. Rb6 {[%clk 00:12:16]} {[%emt 00:01:22]} Ra7 {[%clk 00:02:11]}
{[%emt 00:00:38]} 31. Bc4 {[%clk 00:10:53]} {[%emt 00:01:53]} Kg7 {[%clk
00:01:27]} {[%emt 00:01:15]} 32. Bd5 {[%clk 00:10:40]} {[%emt 00:00:43]} Bc2
{[%clk 00:01:15]} {[%emt 00:00:42]} 33. Rd2 {[%clk 00:09:58]} {[%emt 00:01:12]}
Re1+ {[%clk 00:01:28]} {[%emt 00:00:17]} 34. Kh2 {[%clk 00:10:27]} Be4 {[%clk
00:00:34]} {[%emt 00:01:24]} 35. Bxe4 {[%clk 00:10:24]} {[%emt 00:00:33]} Rxe4
{[%clk 00:01:00]} {[%emt 00:00:05]} 36. Rd7 {[%clk 00:10:33]} {[%emt 00:00:20]}
Re1 {[%clk 00:00:43]} {[%emt 00:00:47]} 37. Rbxb7 {[%clk 00:10:56]} {[%emt
00:00:07]} Raa1 {[%clk 00:01:03]} {[%emt 00:00:10]} 38. Rxf7+ {[%clk 00:11:21]}
{[%emt 00:00:05]} Kg8 {[%clk 00:01:25]} {[%emt 00:00:08]} 39. Rxf4 {[%clk
00:11:46]} {[%emt 00:00:04]} 1-0